lending/lending_fUSD_20241211
["ID","MTS","AMOUNT","RATE_DAILY","PERIOD"]
[344916535,1733875852651,-500.0,0.00010958,2]
[344916536,1733875852660,-596.58969559,0.00010958,2]
[344916537,1733875852669,-6673.7,0.00010958,2]
[344916538,1733875852679,-500.0,0.00010958,2]
[344916539,1733875852688,-6673.7,0.00010958,2]
[344916540,1733875852699,-500.0,0.00010958,2]
[344916541,1733875852709,-6673.7,0.00010958,2]
[344916542,1733875852719,-500.0,0.00010958,2]
[344916543,1733875852729,-6673.7,0.00010958,2]
[344916544,1733875852738,-500.0,0.00010958,2]
[344916545,1733875852747,-1537.3,0.00010958,2]
[344916546,1733875852756,-500.0,0.00010958,2]
[344916547,1733875852766,-6673.7,0.00010958,2]
[344916548,1733875852778,-1537.3,0.00010958,2]
[344916549,1733875852788,-6673.7,0.00010958,2]
[344916550,1733875852799,-500.0,0.00010958,2]
[344916551,1733875852809,-1537.3,0.00010958,2]
[344916552,1733875852819,-6673.7,0.00010958,2]
[344916553,1733875852829,-309.68,0.00010958,2]
[344916554,1733875852840,-1537.3,0.00010958,2]
[344916555,1733875852849,-6673.7,0.00010958,2]
[344916556,1733875852860,-894.39,0.00010958,2]
[344916557,1733875852871,-6673.7,0.00010958,2]
[344916558,1733875852881,-1537.3,0.00010958,2]
[344916559,1733875852891,-894.39,0.00010958,2]
[344916560,1733875852901,-1537.3,0.00010958,2]
[344916561,1733875852910,-894.39,0.00010958,2]
[344916562,1733875852920,-1537.3,0.00010958,2]
[344916563,1733875852930,-1537.3,0.00010958,2]
[344916564,1733875852940,-894.39,0.00010958,2]
[344916565,1733875852953,-1537.3,0.00010958,2]
[344916566,1733875852963,-894.39,0.00010958,2]
[344916567,1733875852974,-1537.3,0.00010958,2]
[344916568,1733875852983,-894.39,0.00010958,2]
[344916569,1733875852993,-1537.3,0.00010958,2]
[344916570,1733875853002,-894.39,0.00010958,2]
[344916571,1733875853011,-1537.3,0.00010958,2]
[344916572,1733875853021,-1537.3,0.00010958,2]
[344916573,1733875853031,-6673.7,0.00010958,2]
[344916574,1733875853040,-894.39,0.00010958,2]
[344916575,1733875853050,-6673.7,0.00010958,2]
[344916576,1733875853060,-894.39,0.00010958,2]
[344916577,1733875853069,-894.39,0.00010958,2]
[344916578,1733875853078,-6673.7,0.00010958,2]
[344916579,1733875853088,-894.39,0.00010958,2]
[344916580,1733875853098,-894.39,0.00010958,2]
[344916581,1733875853107,-894.39,0.00010958,2]
[344916582,1733875853116,-500.0,0.00010958,2]
[344916583,1733875853126,-500.0,0.00010958,2]
[344916584,1733875853135,-500.0,0.00010958,2]
[344916585,1733875853145,-212.33,0.00010958,2]
[344916586,1733875853155,-500.0,0.00010958,2]
[344916587,1733875853165,-500.0,0.00010958,2]
[344916588,1733875853175,-1236.21,0.00010958,2]
[344916589,1733875853186,-500.0,0.00010958,2]
[344916590,1733875853195,-1236.21,0.00010958,2]
[344916591,1733875853207,-500.0,0.00010958,2]
[344916592,1733875853218,-1236.21,0.00010958,2]
[344916593,1733875853227,-500.0,0.00010958,2]
[344916594,1733875853237,-1236.21,0.00010958,2]
[344916595,1733875853246,-500.0,0.00010958,2]
[344916596,1733875853259,-500.0,0.00010958,2]
[344916597,1733875853270,-1861.56,0.00010958,2]
[344916598,1733875853281,-1236.21,0.00010958,2]
[344916599,1733875853292,-1236.21,0.00010958,2]
[344916600,1733875853302,-500.0,0.00010958,2]
[344916601,1733875853311,-1861.56,0.00010958,2]
[344916602,1733875853321,-500.0,0.00010958,2]
[344916603,1733875853331,-1861.56,0.00010958,2]
[344916604,1733875853341,-1236.21,0.00010958,2]
[344916605,1733875853350,-421.54710963,0.00010958,2]
[344916606,1733875853360,-500.0,0.00010958,2]
[344916607,1733875853369,-1236.21,0.00010958,2]
[344916608,1733875853379,-1861.56,0.00010958,2]
[344916609,1733875853389,-500.0,0.00010958,2]
[344916610,1733875853399,-1236.21,0.00010958,2]
[344916611,1733875853409,-1861.56,0.00010958,2]
[344916612,1733875853418,-500.0,0.00010958,2]
[344916613,1733875853428,-1236.21,0.00010958,2]
[344916614,1733875853437,-1861.56,0.00010958,2]
[344916615,1733875853448,-500.0,0.00010958,2]
[344916616,1733875853457,-1236.21,0.00010958,2]
[344916617,1733875853466,-1861.56,0.00010958,2]
[344916618,1733875853475,-1236.21,0.00010958,2]
[344916619,1733875853483,-1861.56,0.00010958,2]
[344916620,1733875853493,-500.0,0.00010958,2]
[344916621,1733875853503,-1236.21,0.00010958,2]
[344916622,1733875853513,-1861.56,0.00010958,2]
[344916623,1733875853523,-500.0,0.00010958,2]
[344916624,1733875853533,-1861.56,0.00010958,2]
[344916625,1733875853544,-500.0,0.00010958,2]
[344916626,1733875853554,-1861.56,0.00010958,2]
[344916627,1733875853563,-500.0,0.00010958,2]
[344916628,1733875853574,-1861.56,0.00010958,2]
[344916629,1733875853584,-239.0828447,0.00010958,2]
[344916630,1733875853593,-500.0,0.00010958,2]
[344916631,1733875853605,-1861.56,0.00010958,2]
[344916632,1733875853615,-500.0,0.00010958,2]
[344916633,1733875853625,-500.0,0.00010958,2]
[344916634,1733875853634,-245.43323191,0.00010958,2]
[344916635,1733875853643,-518.34057352,0.00010958,2]
[344916636,1733875853653,-500.50899837,0.00010958,2]
[344916637,1733875853663,-682.98,0.00010958,2]
[344916638,1733875853672,-682.98,0.00010958,2]
[344916639,1733875853682,-682.98,0.00010958,2]
[344916640,1733875853691,-500.0,0.00010958,2]
[344916641,1733875853702,-682.98,0.00010958,2]
[344916642,1733875853712,-500.0,0.00010958,2]
[344916643,1733875853722,-682.98,0.00010958,2]
[344916644,1733875853731,-500.0,0.00010958,2]
[344916645,1733875853740,-682.98,0.00010958,2]
[344916646,1733875853750,-500.0,0.00010958,2]
[344916647,1733875853760,-682.98,0.00010958,2]
[344916648,1733875853770,-500.0,0.00010958,2]
[344916649,1733875853781,-682.98,0.00010958,2]
[344916650,1733875853791,-500.0,0.00010958,2]
[344916651,1733875853800,-682.98,0.00010958,2]
[344916652,1733875853810,-500.0,0.00010958,2]
[344916653,1733875853821,-682.98,0.00010958,2]
[344916654,1733875853831,-370.72794643,0.00010958,2]
[344916655,1733875853840,-682.98,0.00010958,2]
[344916656,1733875853853,-500.0,0.00010958,2]
[344916657,1733875853863,-682.98,0.00010958,2]
[344916658,1733875853872,-1319.28,0.00010958,2]
[344916659,1733875853882,-2000.24,0.00010958,2]
[344916660,1733875853892,-1319.28,0.00010958,2]
[344916661,1733875853901,-2000.24,0.00010958,2]
[344916662,1733875853911,-1319.28,0.00010958,2]
[344916663,1733875853920,-2000.24,0.00010958,2]
[344916664,1733875853930,-1319.28,0.00010958,2]
[344916665,1733875853939,-2000.24,0.00010958,2]
[344916666,1733875853951,-1319.28,0.00010958,2]
[344916667,1733875853963,-2000.24,0.00010958,2]
[344916668,1733875853973,-2000.24,0.00010958,2]
[344916669,1733875853983,-1319.28,0.00010958,2]
[344916670,1733875853994,-500.0,0.00010958,2]
[344916671,1733875854004,-1319.28,0.00010958,2]
[344916672,1733875854014,-2000.24,0.00010958,2]
[344916673,1733875854024,-500.0,0.00010958,2]
[344916674,1733875854034,-1319.28,0.00010958,2]
[344916675,1733875854044,-2000.24,0.00010958,2]
[344916676,1733875854054,-841.29,0.00010958,2]
[344916677,1733875854064,-500.0,0.00010958,2]
[344916678,1733875854074,-2000.24,0.00010958,2]
[344916679,1733875854084,-1319.28,0.00010958,2]
[344916680,1733875854094,-841.29,0.00010958,2]
[344916681,1733875854104,-500.0,0.00010958,2]
[344916682,1733875854113,-500.0,0.00010958,2]
[344916683,1733875854123,-2000.24,0.00010958,2]
[344916684,1733875854132,-1319.28,0.00010958,2]
[344916685,1733875854142,-841.29,0.00010958,2]
[344916686,1733875854152,-500.0,0.00010958,2]
[344916687,1733875854161,-500.0,0.00010958,2]
[344916688,1733875854171,-1319.28,0.00010958,2]
[344916689,1733875854184,-841.29,0.00010958,2]
[344916690,1733875854193,-504.68,0.00010958,2]
[344916691,1733875854210,-1319.28,0.00010958,2]
[344916692,1733875854219,-2000.24,0.00010958,2]
[344916693,1733875854228,-841.29,0.00010958,2]
[344916694,1733875854238,-500.0,0.00010958,2]
[344916695,1733875854247,-1319.28,0.00010958,2]
[344916696,1733875854257,-2000.24,0.00010958,2]
[344916697,1733875854267,-841.29,0.00010958,2]
[344916698,1733875854276,-500.0,0.00010958,2]
[344916699,1733875854286,-841.29,0.00010958,2]
[344916700,1733875854295,-500.0,0.00010958,2]
[344916701,1733875854308,-841.29,0.00010958,2]
[344916702,1733875854318,-500.0,0.00010958,2]
[344916703,1733875854327,-500.0,0.00010958,2]
[344916704,1733875854340,-841.29,0.00010958,2]
[344916705,1733875854350,-500.0,0.00010958,2]
[344916706,1733875854359,-841.29,0.00010958,2]
[344916707,1733875854369,-500.0,0.00010958,2]
[344916708,1733875854378,-841.29,0.00010958,2]
[344916709,1733875854388,-500.0,0.00010958,2]
[344916710,1733875854398,-841.29,0.00010958,2]
[344916711,1733875854408,-500.0,0.00010958,2]
[344916712,1733875854418,-500.0,0.00010958,2]
[344916713,1733875854428,-500.0,0.00010958,2]
[344916714,1733875854437,-500.0,0.00010958,2]
[344916715,1733875854447,-500.0,0.00010958,2]
[344916716,1733875854460,-500.0,0.00010958,2]
[344916717,1733875854469,-503.9357861,0.00010958,2]
[344916718,1733875854479,-500.0,0.00010958,2]
[344916719,1733875854489,-500.0,0.00010958,2]
[344916720,1733875854499,-500.0,0.00010958,2]
[344916721,1733875854508,-500.0,0.00010958,2]
[344916722,1733875854518,-500.0,0.00010958,2]
[344916723,1733875854528,-500.0,0.00010958,2]
[344916724,1733875854537,-500.0,0.00010958,2]
[344916725,1733875854547,-500.0,0.00010958,2]
[344916726,1733875854557,-500.0,0.00010958,2]
[344916727,1733875854566,-500.0,0.00010958,2]
[344916728,1733875854576,-586.07,0.00010958,2]
[344916729,1733875854586,-500.0,0.00010958,2]
[344916730,1733875854595,-500.0,0.00010958,2]
[344916731,1733875854605,-500.0,0.00010958,2]
[344916732,1733875854614,-500.0,0.00010958,2]
[344916733,1733875854624,-500.0,0.00010958,2]
[344916734,1733875854633,-500.0,0.00010958,2]
[344916735,1733875854643,-500.0,0.00010958,2]
[344916736,1733875854653,-500.0,0.00010958,2]
[344916737,1733875854662,-500.0,0.00010958,2]
[344916738,1733875854671,-500.0,0.00010958,2]
[344916739,1733875854681,-500.0,0.00010958,2]
[344916740,1733875854691,-335.86,0.00010958,2]
[344916741,1733875854705,-235.70814296,0.00010958,2]
[344916742,1733875854715,-500.0,0.00010958,2]
[344916743,1733875854725,-500.0,0.00010958,2]
[344916744,1733875854734,-500.0,0.00010958,2]
[344916745,1733875854744,-500.0,0.00010958,2]
[344916746,1733875854754,-500.0,0.00010958,2]
[344916747,1733875854763,-500.0,0.00010958,2]
[344916748,1733875854777,-262.08,0.00010958,2]
[344916749,1733875854787,-209.8,0.00010958,2]
[344916750,1733875854797,-500.0,0.00010958,2]
[344916751,1733875854807,-500.0,0.00010958,2]
[344916752,1733875854817,-500.0,0.00010958,2]
[344916753,1733875854827,-500.0,0.00010958,2]
[344916754,1733875854837,-500.0,0.00010958,2]
[344916755,1733875854848,-500.0,0.00010958,2]
[344916756,1733875854858,-500.0,0.00010958,2]
[344916757,1733875854867,-500.0,0.00010958,2]
[344916758,1733875854877,-500.0,0.00010958,2]
[344916759,1733875854887,-500.0,0.00010958,2]
[344916760,1733875854898,-500.0,0.00010958,2]
[344916761,1733875854908,-500.0,0.00010958,2]
[344916762,1733875854917,-500.0,0.00010958,2]
[344916763,1733875854927,-500.0,0.00010958,2]
[344916764,1733875854938,-500.0,0.00010958,2]
[344916765,1733875854949,-500.0,0.00010958,2]
[344916766,1733875854965,-376.42458004,0.00010958,2]
[344916767,1733875854975,-500.0,0.00010958,2]
[344916768,1733875854986,-500.0,0.00010958,2]
[344916769,1733875854996,-500.0,0.00010958,2]
[344916770,1733875855007,-500.0,0.00010958,2]
[344916771,1733875855017,-320.98582082,0.00010958,2]
[344916772,1733875855166,-500.0,0.00010958,2]
[344916773,1733875855196,-500.0,0.00010958,2]
[344916774,1733875855212,-500.0,0.00010958,2]
[344916775,1733875855222,-500.0,0.00010958,2]
[344916776,1733875855232,-500.0,0.00010958,2]
[344916777,1733875855243,-500.0,0.00010958,2]
[344916778,1733875855252,-747.52,0.00010958,2]
[344916779,1733875855263,-500.0,0.00010958,2]
[344916780,1733875855273,-747.52,0.00010958,2]
[344916781,1733875855282,-500.0,0.00010958,2]
[344916782,1733875855291,-500.0,0.00010958,2]
[344916783,1733875855301,-747.52,0.00010958,2]
[344916784,1733875855310,-500.0,0.00010958,2]
[344916785,1733875855320,-500.0,0.00010958,2]
[344916786,1733875855330,-500.0,0.00010958,2]
[344916787,1733875855339,-747.52,0.00010958,2]
[344916788,1733875855349,-500.0,0.00010958,2]
[344916789,1733875855359,-747.52,0.00010958,2]
[344916790,1733875855368,-500.0,0.00010958,2]
[344916791,1733875855378,-747.52,0.00010958,2]
[344916792,1733875855387,-747.52,0.00010958,2]
[344916793,1733875855396,-500.0,0.00010958,2]
[344916794,1733875855405,-500.0,0.00010958,2]
[344916795,1733875855415,-747.52,0.00010958,2]
[344916796,1733875855425,-500.0,0.00010958,2]
[344916797,1733875855434,-500.0,0.00010958,2]
[344916798,1733875855443,-747.52,0.00010958,2]
[344916799,1733875855456,-747.52,0.00010958,2]
[344916800,1733875855465,-500.0,0.00010958,2]
[344916801,1733875855475,-747.52,0.00010958,2]
[344916802,1733875855484,-500.0,0.00010958,2]
[344916803,1733875855494,-747.52,0.00010958,2]
[344916804,1733875855503,-747.52,0.00010958,2]
[344916805,1733875855512,-616.82288328,0.00010958,2]
[344916806,1733875855521,-1113.95,0.00010958,2]
[344916807,1733875855531,-1113.95,0.00010958,2]
[344916808,1733875855540,-1113.95,0.00010958,2]
[344916809,1733875855549,-1113.95,0.00010958,2]
[344916810,1733875855559,-1113.95,0.00010958,2]
[344916811,1733875855568,-500.0,0.00010958,2]
[344916812,1733875855577,-1113.95,0.00010958,2]
[344916813,1733875855587,-1113.95,0.00010958,2]
[344916814,1733875855596,-1113.95,0.00010958,2]
[344916815,1733875855606,-1113.95,0.00010958,2]
[344916816,1733875855616,-1113.95,0.00010958,2]
[344916817,1733875855626,-1113.95,0.00010958,2]
[344916818,1733875855636,-1113.95,0.00010958,2]
[344916819,1733875855647,-1113.95,0.00010958,2]
[344916820,1733875855657,-500.0,0.00010958,2]
[344916821,1733875855667,-500.0,0.00010958,2]
[344916822,1733875855677,-500.0,0.00010958,2]
[344916823,1733875855686,-500.0,0.00010958,2]
[344916824,1733875855696,-500.0,0.00010958,2]
[344916825,1733875855709,-2499.39,0.00010958,2]
[344916826,1733875855718,-500.0,0.00010958,2]
[344916827,1733875855727,-183.52,0.00010958,2]
[344916828,1733875855737,-2499.39,0.00010958,2]
[344916829,1733875855746,-500.0,0.00010958,2]
[344916830,1733875855756,-500.0,0.00010958,2]
[344916831,1733875855765,-2499.39,0.00010958,2]
[344916832,1733875855776,-500.0,0.00010958,2]
[344916833,1733875855788,-2499.39,0.00010958,2]
[344916834,1733875855798,-500.0,0.00010958,2]
[344916835,1733875855808,-500.0,0.00010958,2]
[344916836,1733875855818,-2499.39,0.00010958,2]
[344916837,1733875855828,-500.0,0.00010958,2]
[344916838,1733875855838,-619.72179876,0.00010958,2]
[344916839,1733875855848,-2499.39,0.00010958,2]
[344916840,1733875855860,-200.0,0.00010959,2]
[344916841,1733875855870,-164.47962,0.00010959,2]
[344916842,1733875855879,-164.47962,0.00010959,2]
[344916843,1733875855889,-164.47962,0.00010959,2]
[344916844,1733875855898,-164.47962,0.00010959,2]
[344916845,1733875855907,-164.47962,0.00010959,2]
[344916846,1733875855917,-164.47962,0.00010959,2]
[344916847,1733875855927,-164.47962,0.00010959,2]
[344916848,1733875855936,-164.47962,0.00010959,2]
[344916849,1733875855946,-164.47962,0.00010959,2]
[344916850,1733875855959,-164.47962,0.00010959,2]
[344916851,1733875855968,-164.47962,0.00010959,2]
[344916852,1733875855978,-164.47962,0.00010959,2]
[344916853,1733875855987,-164.47962,0.00010959,2]
[344916854,1733875855997,-164.47962,0.00010959,2]
[344916855,1733875856007,-164.47962,0.00010959,2]
[344916856,1733875856017,-164.47962,0.00010959,2]
[344916857,1733875856026,-164.47962,0.00010959,2]
[344916858,1733875856035,-164.47962,0.00010959,2]
[344916859,1733875856045,-164.47962,0.00010959,2]
[344916860,1733875856054,-164.479625,0.00010959,2]
[344916861,1733875856064,-7512.0,0.00010959,2]
[344916862,1733875856074,-150.0,0.00010959,2]
[344916863,1733875856083,-2214.9648008,0.00010967,2]
[344916864,1733875856093,-12450.27662974,0.00010967,2]
[344916865,1733875856103,-311.66666667,0.00010968,2]
[344916866,1733875856112,-1223865.7399545,0.00010969,2]
[344916867,1733875856121,-401.26057964,0.00010969,2]
[344916868,1733875856131,-852.79519832,0.00010969,2]
[344916869,1733875856141,-3917.82562297,0.00010969,2]
[344916870,1733875856151,-613.14740155,0.0001097,2]
[344916871,1733875856162,-3917.82562297,0.0001097,2]
[344916872,1733875856171,-2214.9648008,0.0001097,2]
[344916873,1733875856180,-451343.72618399,0.0001097,2]
[344916874,1733875856718,-14616.69655464,0.0001097,2]
[344916875,1733875857633,-1098.0,0.00010298,2]
[344916876,1733875857643,-1044.69484311,0.000109,2]
[344916877,1733875857656,-903.44778943,0.000109,2]
[344916878,1733875857666,-500.0,0.00010958,2]
[344916879,1733875857675,-2499.39,0.00010958,2]
[344916880,1733875857685,-500.0,0.00010958,2]
[344916881,1733875857694,-2499.39,0.00010958,2]
[344916882,1733875857706,-2499.39,0.00010958,2]
[344916883,1733875857716,-2499.39,0.00010958,2]
[344916884,1733875857725,-2499.39,0.00010958,2]
[344916885,1733875857735,-2499.39,0.00010958,2]
[344916886,1733875857744,-22067.85070841,0.0001097,2]
[344916887,1733875857775,-9358.84292767,0.0001097,2]
[344916888,1733875858153,-1025.9243428,0.000109,2]
[344916889,1733875858164,-922.21828974,0.000109,2]
[344916890,1733875858174,-4872.33182406,0.0001097,2]
[344916891,1733875858186,-14630.93287491,0.0001097,2]
[344916892,1733875858198,-412.634,0.0001097,2]
[344916893,1733875858212,-4033.43906681,0.0001097,2]
[344916894,1733875858351,-1615.6992,0.0001097,2]
[344916895,1733875858369,-2847.59268996,0.0001097,2]
[344916896,1733875858380,-17372.92776698,0.0001097,2]
[344916897,1733875858393,-96821.70970668,0.0001097,2]
[344916898,1733875858408,-2526.4860124,0.0001097,2]
[344916899,1733875858421,-1997.64999998,0.0001097,2]
[344916900,1733875858627,-1948.14263254,0.000109,2]
[344916901,1733875858637,-3519.60620574,0.0001097,2]
[344916902,1733875858648,-3458.72551644,0.0001097,2]
[344916903,1733875858659,-1051.96977662,0.0001097,2]
[344916904,1733875858670,-334.75634228,0.0001097,2]
[344916905,1733875858681,-1470.51803953,0.0001097,2]
[344916906,1733875858692,-2827.14045835,0.0001097,2]
[344916907,1733875858706,-1438.13578891,0.0001097,2]
[344916908,1733875858716,-264.49398547,0.0001097,2]
[344916909,1733875858731,-711.38074383,0.0001097,2]
[344916910,1733875858743,-1076.24944658,0.0001097,2]
[344916912,1733876455112,867.93,8.219e-05,2]
[344916930,1733877031899,-250.0,9.81e-05,2]
[344916931,1733877031909,-46.14113343,9.81e-05,2]
[344916932,1733877032072,-203.85886657,9.81e-05,2]
[344916933,1733877032082,-250.0,9.816e-05,2]
[344916934,1733877032091,-512.15,9.829e-05,2]
[344916935,1733877032101,-7436.9,9.83e-05,2]
[344916936,1733877032110,-130.03117708,9.831e-05,2]
[344916941,1733877037739,-45.34882292,9.831e-05,2]
[344916942,1733877037748,-1000.0,9.858e-05,2]
[344916943,1733877037757,-184.74,9.863e-05,2]
[344916944,1733877037765,-11913.61331334,9.88e-05,2]
[344916945,1733877037775,-12500.87975922,0.0001,2]
[344916946,1733877037784,-1004.78,0.00010295,2]
[344916947,1733877037794,-335.0505,0.00010297,2]
[344916948,1733877037803,-150.0,0.00010297,2]
[344916949,1733877037813,-1524.55315278,0.00010298,2]
[344916950,1733877037916,-369.44684722,0.00010298,2]
[344916951,1733877037926,-564.0,0.00010298,2]
[344916952,1733877037936,-1253.0,0.00010298,2]
[344916953,1733877037945,-817.0,0.00010298,2]
[344916954,1733877037956,-3763.0,0.00010298,2]
[344916955,1733877037966,-3595.0,0.00010298,2]
[344916956,1733877037977,-535.0,0.00010298,2]
[344916957,1733877037986,-932.0,0.00010298,2]
[344916958,1733877037995,-1098.0,0.00010298,2]
[344916959,1733877038004,-567.0,0.00010298,2]
[344916960,1733877038013,-1262.0,0.00010298,2]
[344916961,1733877038023,-634.0,0.00010298,2]
[344916962,1733877038032,-3878.0,0.00010298,2]
[344916963,1733877038041,-150.0,0.00010298,2]
[344916964,1733877038050,-371.351,0.0001042,2]
[344916965,1733877038060,-867.93,0.00010467,2]
[344916966,1733877038069,-1300.0,0.0001063,2]
[344916967,1733877038078,-500.0,0.0001063,2]
[344916968,1733877038087,-1420.42,0.00010646,2]
[344916970,1733877038097,-150.0,0.0001069,2]
[344916972,1733877038109,-150.0,0.0001069,2]
[344916973,1733877038119,-150.0,0.00010693,2]
[344916975,1733877038128,-150.0,0.00010693,2]
[344916976,1733877038137,-150.0,0.00010697,2]
[344916977,1733877038147,-150.0,0.00010697,2]
[344916978,1733877038160,-150.0,0.00010706,2]
[344916979,1733877038169,-150.0,0.00010711,2]
[344916980,1733877038178,-150.0,0.00010712,2]
[344916981,1733877038187,-150.0,0.00010725,2]
[344916982,1733877038196,-150.0,0.00010728,2]
[344916983,1733877038205,-150.0,0.00010735,2]
[344916985,1733877038214,-150.0,0.00010738,2]
[344916987,1733877038224,-150.0,0.00010738,2]
[344916989,1733877038236,-150.0,0.00010742,2]
[344916991,1733877038246,-150.0,0.00010745,2]
[344916993,1733877038255,-150.0,0.00010748,2]
[344916995,1733877038265,-150.0,0.00010751,2]
[344916997,1733877038275,-150.0,0.00010757,2]
[344916999,1733877038285,-150.0,0.0001076,2]
[344917001,1733877038294,-150.0,0.00010762,2]
[344917003,1733877038304,-150.0,0.00010763,2]
[344917005,1733877038314,-150.0,0.00010766,2]
[344917008,1733877038325,-150.0,0.00010767,2]
[344917009,1733877038335,-150.0,0.00010782,2]
[344917010,1733877038344,-150.0,0.00010783,2]
[344917011,1733877038354,-150.0,0.00010785,2]
[344917012,1733877038363,-150.0,0.00010786,2]
[344917013,1733877038373,-150.0,0.00010787,2]
[344917014,1733877038382,-150.0,0.00010787,2]
[344917015,1733877038391,-150.0,0.00010789,2]
[344917016,1733877038400,-150.0,0.0001079,2]
[344917017,1733877038410,-150.0,0.00010793,2]
[344917018,1733877038419,-150.0,0.00010796,2]
[344917019,1733877038429,-150.0,0.000108,2]
[344917020,1733877038438,-150.0,0.00010802,2]
[344917021,1733877038448,-150.0,0.00010803,2]
[344917022,1733877038457,-150.0,0.00010808,2]
[344917023,1733877038467,-150.0,0.00010811,2]
[344917024,1733877038477,-150.0,0.00010812,2]
[344917025,1733877038486,-150.0,0.00010813,2]
[344917026,1733877038495,-150.0,0.00010817,2]
[344917027,1733877038504,-150.0,0.0001082,2]
[344917028,1733877038513,-150.0,0.00010823,2]
[344917029,1733877038523,-150.0,0.00010827,2]
[344917030,1733877038532,-150.0,0.0001083,2]
[344917031,1733877038542,-150.0,0.00010831,2]
[344917032,1733877038552,-150.0,0.00010832,2]
[344917033,1733877038561,-150.0,0.00010834,2]
[344917034,1733877038571,-150.0,0.00010836,2]
[344917035,1733877038581,-150.0,0.00010839,2]
[344917036,1733877038590,-150.0,0.00010841,2]
[344917037,1733877038600,-150.0,0.00010845,2]
[344917038,1733877038609,-150.0,0.00010847,2]
[344917039,1733877038618,-150.0,0.00010849,2]
[344917040,1733877038629,-150.0,0.00010851,2]
[344917041,1733877038639,-150.0,0.00010854,2]
[344917042,1733877038647,-150.0,0.00010855,2]
[344917043,1733877038656,-2500.0,0.00010858,2]
[344917044,1733877038665,-1114.3833,0.00010858,2]
[344917045,1733877038674,-150.0,0.00010861,2]
[344917046,1733877038684,-150.0,0.00010865,2]
[344917047,1733877038694,-150.0,0.00010866,2]
[344917048,1733877038704,-150.0,0.00010868,2]
[344917049,1733877038714,-150.0,0.00010872,2]
[344917050,1733877038723,-150.0,0.00010872,2]
[344917051,1733877038733,-150.0,0.00010873,2]
[344917052,1733877038744,-150.0,0.00010874,2]
[344917053,1733877038754,-150.0,0.00010878,2]
[344917054,1733877038763,-150.0,0.00010885,2]
[344917055,1733877038773,-150.0,0.00010891,2]
[344917056,1733877038783,-150.0,0.00010891,2]
[344917057,1733877038793,-150.0,0.00010897,2]
[344917058,1733877038802,-150.0,0.00010897,2]
[344917059,1733877038811,-150.0,0.00010898,2]
[344917060,1733877038821,-1005.41,0.000109,2]
[344917061,1733877038830,-158.63133302,0.000109,2]
[344917062,1733877038839,-162.34521947,0.000109,2]
[344917063,1733877038849,-162.34521937,0.000109,2]
[344917064,1733877038858,-162.34521937,0.000109,2]
[344917065,1733877038868,-162.34521937,0.000109,2]
[344917066,1733877038879,-150.0,0.00010904,2]
[344917067,1733877038889,-150.0,0.00010907,2]
[344917068,1733877038899,-150.0,0.00010908,2]
[344917069,1733877038909,-150.0,0.00010909,2]
[344917070,1733877038919,-162.34521937,0.0001091,2]
[344917071,1733877038929,-150.0,0.00010913,2]
[344917072,1733877038939,-150.0,0.00010915,2]